fUSD/lending_fUSD_20240909
["ID","MTS","AMOUNT","RATE_DAILY","PERIOD"]
[337598451,1725883867707,-1001.61,0.00014794,2]
[337598452,1725883867716,-154.064512,0.00014794,2]
[337598453,1725883867726,-500.0,0.00014794,2]
[337598454,1725883867735,-1001.61,0.00014794,2]
[337598455,1725883867744,-154.064512,0.00014794,2]
[337598456,1725883867753,-500.0,0.00014794,2]
[337598457,1725883867762,-1001.61,0.00014794,2]
[337598458,1725883867772,-708.06,0.00014794,2]
[337598459,1725883867782,-605.31,0.00014794,2]
[337598460,1725883867791,-500.0,0.00014794,2]
[337598461,1725883867801,-1001.61,0.00014794,2]
[337598462,1725883867810,-154.064512,0.00014794,2]
[337598463,1725883867819,-500.0,0.00014794,2]
[337598464,1725883867829,-605.31,0.00014794,2]
[337598465,1725883867840,-708.06,0.00014794,2]
[337598466,1725883867852,-500.0,0.00014794,2]
[337598467,1725883867861,-1001.61,0.00014794,2]
[337598468,1725883867870,-500.0,0.00014794,2]
[337598469,1725883867879,-605.31,0.00014794,2]
[337598470,1725883867889,-793.9,0.00014794,2]
[337598471,1725883867898,-708.06,0.00014794,2]
[337598472,1725883867907,-154.064512,0.00014794,2]
[337598473,1725883867917,-500.0,0.00014794,2]
[337598474,1725883867926,-500.0,0.00014794,2]
[337598475,1725883867935,-1001.61,0.00014794,2]
[337598476,1725883867945,-605.31,0.00014794,2]
[337598477,1725883867955,-708.06,0.00014794,2]
[337598478,1725883867965,-500.0,0.00014794,2]
[337598479,1725883867975,-154.064512,0.00014794,2]
[337598480,1725883867984,-605.31,0.00014794,2]
[337598481,1725883867994,-793.9,0.00014794,2]
[337598482,1725883868004,-708.06,0.00014794,2]
[337598483,1725883868014,-1001.61,0.00014794,2]
[337598484,1725883868023,-500.0,0.00014794,2]
[337598485,1725883868032,-500.0,0.00014794,2]
[337598486,1725883868041,-605.31,0.00014794,2]
[337598487,1725883868050,-708.06,0.00014794,2]
[337598488,1725883868059,-793.9,0.00014794,2]
[337598489,1725883868069,-1001.61,0.00014794,2]
[337598490,1725883868078,-154.064512,0.00014794,2]
[337598491,1725883868088,-500.0,0.00014794,2]
[337598492,1725883868098,-500.0,0.00014794,2]
[337598493,1725883868107,-605.31,0.00014794,2]
[337598494,1725883868116,-793.9,0.00014794,2]
[337598495,1725883868126,-708.06,0.00014794,2]
[337598496,1725883868135,-1001.61,0.00014794,2]
[337598497,1725883868145,-268.95075084,0.00014794,2]
[337598498,1725883868155,-154.064512,0.00014794,2]
[337598499,1725883868164,-605.31,0.00014794,2]
[337598500,1725883868173,-500.0,0.00014794,2]
[337598501,1725883868183,-793.9,0.00014794,2]
[337598502,1725883868192,-708.06,0.00014794,2]
[337598503,1725883868201,-1001.61,0.00014794,2]
[337598504,1725883868211,-605.31,0.00014794,2]
[337598505,1725883868340,-648.37535313,0.00014794,2]
[337598506,1725883868350,-793.9,0.00014794,2]
[337598507,1725883868360,-708.06,0.00014794,2]
[337598508,1725883868370,-1001.61,0.00014794,2]
[337598509,1725883868379,-605.31,0.00014794,2]
[337598510,1725883868389,-1001.61,0.00014794,2]
[337598511,1725883868398,-708.06,0.00014794,2]
[337598512,1725883868408,-793.9,0.00014794,2]
[337598513,1725883868418,-154.064512,0.00014794,2]
[337598514,1725883868427,-605.31,0.00014794,2]
[337598515,1725883868437,-1001.73050787,0.00014794,2]
[337598516,1725883868446,-793.9,0.00014794,2]
[337598517,1725883868456,-708.06,0.00014794,2]
[337598518,1725883868466,-605.31,0.00014794,2]
[337598519,1725883868475,-793.9,0.00014794,2]
[337598520,1725883868485,-154.064512,0.00014794,2]
[337598521,1725883868494,-708.06,0.00014794,2]
[337598522,1725883868503,-605.31,0.00014794,2]
[337598523,1725883868512,-793.9,0.00014794,2]
[337598524,1725883868521,-605.40056155,0.00014794,2]
[337598525,1725883868530,-793.9,0.00014794,2]
[337598526,1725883868539,-793.9,0.00014794,2]
[337598527,1725883868548,-154.064512,0.00014794,2]
[337598528,1725883868558,-500.0,0.00014794,2]
[337598529,1725883868567,-793.9,0.00014794,2]
[337598530,1725883868576,-500.0,0.00014794,2]
[337598531,1725883868585,-154.064512,0.00014794,2]
[337598532,1725883868595,-793.9,0.00014794,2]
[337598533,1725883868604,-500.0,0.00014794,2]
[337598534,1725883868613,-154.064512,0.00014794,2]
[337598535,1725883868622,-500.0,0.00014794,2]
[337598536,1725883868631,-500.0,0.00014794,2]
[337598537,1725883868641,-793.9,0.00014794,2]
[337598538,1725883868650,-500.0,0.00014794,2]
[337598539,1725883868659,-500.0,0.00014794,2]
[337598540,1725883868669,-154.064512,0.00014794,2]
[337598541,1725883868678,-500.0,0.00014794,2]
[337598542,1725883868688,-793.9,0.00014794,2]
[337598543,1725883868697,-500.0,0.00014794,2]
[337598544,1725883868706,-500.0,0.00014794,2]
[337598545,1725883868715,-500.0,0.00014794,2]
[337598546,1725883868725,-500.0,0.00014794,2]
[337598547,1725883868734,-501.38918104,0.00014794,2]
[337598548,1725883868743,-793.9,0.00014794,2]
[337598549,1725883868752,-154.064512,0.00014794,2]
[337598550,1725883868761,-500.0,0.00014794,2]
[337598551,1725883868771,-417.02331938,0.00014794,2]
[337598552,1725883868780,-500.0,0.00014794,2]
[337598553,1725883868790,-500.0,0.00014794,2]
[337598554,1725883868799,-500.0,0.00014794,2]
[337598555,1725883868808,-154.064512,0.00014794,2]
[337598556,1725883868817,-500.0,0.00014794,2]
[337598557,1725883868826,-793.9,0.00014794,2]
[337598558,1725883868837,-500.0,0.00014794,2]
[337598559,1725883868851,-500.0,0.00014794,2]
[337598560,1725883868859,-793.9,0.00014794,2]
[337598561,1725883868868,-500.0,0.00014794,2]
[337598562,1725883868878,-500.0,0.00014794,2]
[337598563,1725883868887,-793.9,0.00014794,2]
[337598564,1725883868896,-500.0,0.00014794,2]
[337598565,1725883868906,-154.064512,0.00014794,2]
[337598566,1725883868915,-500.0,0.00014794,2]
[337598567,1725883868924,-793.9,0.00014794,2]
[337598568,1725883868933,-500.0,0.00014794,2]
[337598569,1725883868943,-500.0,0.00014794,2]
[337598570,1725883868952,-154.064512,0.00014794,2]
[337598571,1725883868962,-793.9,0.00014794,2]
[337598572,1725883868971,-500.0,0.00014794,2]
[337598573,1725883868981,-708.06,0.00014794,2]
[337598574,1725883868991,-500.0,0.00014794,2]
[337598575,1725883868999,-793.9,0.00014794,2]
[337598576,1725883869008,-500.0,0.00014794,2]
[337598577,1725883869017,-708.06,0.00014794,2]
[337598578,1725883869026,-500.0,0.00014794,2]
[337598579,1725883869036,-500.0,0.00014794,2]
[337598580,1725883869045,-500.0,0.00014794,2]
[337598581,1725883869054,-794.09192875,0.00014794,2]
[337598582,1725883869063,-154.064512,0.00014794,2]
[337598583,1725883869072,-930.9,0.00014794,2]
[337598584,1725883869081,-500.0,0.00014794,2]
[337598585,1725883869094,-500.0,0.00014794,2]
[337598586,1725883869103,-708.06,0.00014794,2]
[337598587,1725883869112,-500.0,0.00014794,2]
[337598588,1725883869121,-500.0,0.00014794,2]
[337598589,1725883869131,-500.0,0.00014794,2]
[337598590,1725883869140,-930.9,0.00014794,2]
[337598591,1725883869149,-154.064507,0.00014794,2]
[337598592,1725883869158,-708.06,0.00014794,2]
[337598593,1725883869167,-500.0,0.00014794,2]
[337598594,1725883869177,-500.0,0.00014794,2]
[337598595,1725883869186,-930.9,0.00014794,2]
[337598596,1725883869195,-708.06,0.00014794,2]
[337598597,1725883869204,-500.0,0.00014794,2]
[337598598,1725883869213,-500.0,0.00014794,2]
[337598599,1725883869223,-500.0,0.00014794,2]
[337598600,1725883869232,-930.9,0.00014794,2]
[337598601,1725883869241,-708.06,0.00014794,2]
[337598602,1725883869251,-500.0,0.00014794,2]
[337598603,1725883869260,-500.0,0.00014794,2]
[337598604,1725883869269,-930.9,0.00014794,2]
[337598605,1725883869280,-500.0,0.00014794,2]
[337598606,1725883869290,-500.0,0.00014794,2]
[337598607,1725883869299,-708.06,0.00014794,2]
[337598608,1725883869308,-500.0,0.00014794,2]
[337598609,1725883869318,-500.0,0.00014794,2]
[337598610,1725883869327,-500.0,0.00014794,2]
[337598611,1725883869336,-930.9,0.00014794,2]
[337598612,1725883869345,-708.06,0.00014794,2]
[337598613,1725883869355,-500.0,0.00014794,2]
[337598614,1725883869364,-500.0,0.00014794,2]
[337598615,1725883869373,-500.0,0.00014794,2]
[337598616,1725883869382,-500.0,0.00014794,2]
[337598617,1725883869392,-930.9,0.00014794,2]
[337598618,1725883869401,-708.06,0.00014794,2]
[337598619,1725883869410,-500.0,0.00014794,2]
[337598620,1725883869419,-500.0,0.00014794,2]
[337598621,1725883869427,-500.0,0.00014794,2]
[337598622,1725883869436,-930.9,0.00014794,2]
[337598623,1725883869445,-500.0,0.00014794,2]
[337598624,1725883869454,-708.06,0.00014794,2]
[337598625,1725883869463,-500.0,0.00014794,2]
[337598626,1725883869472,-500.0,0.00014794,2]
[337598627,1725883869481,-460.16744676,0.00014794,2]
[337598628,1725883869490,-930.9,0.00014794,2]
[337598629,1725883869499,-420.83613895,0.00014794,2]
[337598630,1725883869508,-500.0,0.00014794,2]
[337598631,1725883869517,-708.06,0.00014794,2]
[337598632,1725883869526,-500.0,0.00014794,2]
[337598633,1725883869535,-500.0,0.00014794,2]
[337598634,1725883869545,-930.9,0.00014794,2]
[337598635,1725883869554,-708.29076638,0.00014794,2]
[337598636,1725883869563,-500.0,0.00014794,2]
[337598637,1725883869572,-930.9,0.00014794,2]
[337598638,1725883869582,-500.0,0.00014794,2]
[337598639,1725883869592,-500.0,0.00014794,2]
[337598640,1725883869601,-930.9,0.00014794,2]
[337598641,1725883869610,-500.0,0.00014794,2]
[337598642,1725883869619,-500.0,0.00014794,2]
[337598643,1725883869628,-930.9,0.00014794,2]
[337598644,1725883869637,-500.0,0.00014794,2]
[337598645,1725883869647,-500.0,0.00014794,2]
[337598646,1725883869656,-930.9,0.00014794,2]
[337598647,1725883869666,-500.0,0.00014794,2]
[337598648,1725883869676,-500.0,0.00014794,2]
[337598649,1725883869685,-930.9,0.00014794,2]
[337598650,1725883869694,-500.0,0.00014794,2]
[337598651,1725883869703,-500.0,0.00014794,2]
[337598652,1725883869713,-930.9,0.00014794,2]
[337598653,1725883869724,-500.0,0.00014794,2]
[337598654,1725883869734,-500.0,0.00014794,2]
[337598655,1725883869743,-500.0,0.00014794,2]
[337598656,1725883869754,-930.9,0.00014794,2]
[337598657,1725883869763,-500.0,0.00014794,2]
[337598658,1725883869772,-500.0,0.00014794,2]
[337598659,1725883869782,-930.9,0.00014794,2]
[337598660,1725883869791,-381.86340947,0.00014794,2]
[337598661,1725883869801,-500.0,0.00014794,2]
[337598662,1725883869810,-500.0,0.00014794,2]
[337598663,1725883869820,-930.9,0.00014794,2]
[337598664,1725883869829,-500.0,0.00014794,2]
[337598665,1725883869839,-930.9,0.00014794,2]
[337598666,1725883869848,-567.04634655,0.00014794,2]
[337598667,1725883869857,-500.0,0.00014794,2]
[337598668,1725883869866,-930.9,0.00014794,2]
[337598669,1725883869876,-500.0,0.00014794,2]
[337598670,1725883869886,-500.0,0.00014794,2]
[337598671,1725883869896,-930.9,0.00014794,2]
[337598672,1725883869905,-4369.79328,0.00014794,2]
[337598673,1725883869915,-500.0,0.00014794,2]
[337598674,1725883869924,-930.9,0.00014794,2]
[337598675,1725883869934,-500.0,0.00014794,2]
[337598676,1725883869944,-4369.79328,0.00014794,2]
[337598677,1725883869954,-931.07802462,0.00014794,2]
[337598678,1725883869963,-500.0,0.00014794,2]
[337598679,1725883869973,-4369.79328,0.00014794,2]
[337598680,1725883869983,-500.0,0.00014794,2]
[337598681,1725883869993,-500.0,0.00014794,2]
[337598682,1725883870002,-186.16212687,0.00014794,2]
[337598683,1725883870011,-4369.79328,0.00014794,2]
[337598684,1725883870020,-500.0,0.00014794,2]
[337598685,1725883870031,-4369.79328,0.00014794,2]
[337598686,1725883870040,-500.0,0.00014794,2]
[337598687,1725883870050,-186.89744335,0.00014794,2]
[337598688,1725883870058,-500.0,0.00014794,2]
[337598689,1725883870068,-4369.79328,0.00014794,2]
[337598690,1725883870078,-500.0,0.00014794,2]
[337598691,1725883870087,-4369.79328,0.00014794,2]
[337598692,1725883870096,-500.0,0.00014794,2]
[337598693,1725883870105,-500.0,0.00014794,2]
[337598694,1725883870114,-500.0,0.00014794,2]
[337598695,1725883870123,-500.0,0.00014794,2]
[337598696,1725883870132,-4369.79328,0.00014794,2]
[337598697,1725883870142,-500.0,0.00014794,2]
[337598698,1725883870151,-4369.79328,0.00014794,2]
[337598699,1725883870162,-500.0,0.00014794,2]
[337598700,1725883870171,-3134.56,0.00014794,2]
[337598701,1725883870180,-500.0,0.00014794,2]
[337598702,1725883870190,-500.0,0.00014794,2]
[337598703,1725883870199,-500.0,0.00014794,2]
[337598704,1725883870208,-3134.56,0.00014794,2]
[337598705,1725883870218,-500.0,0.00014794,2]
[337598706,1725883870227,-4369.79328,0.00014794,2]
[337598707,1725883870236,-500.0,0.00014794,2]
[337598708,1725883870246,-500.0,0.00014794,2]
[337598709,1725883870256,-3134.56,0.00014794,2]
[337598710,1725883870266,-500.0,0.00014794,2]
[337598711,1725883870278,-500.0,0.00014794,2]
[337598712,1725883870289,-4369.79328,0.00014794,2]
[337598713,1725883870298,-500.0,0.00014794,2]
[337598714,1725883870307,-500.0,0.00014794,2]
[337598715,1725883870317,-500.0,0.00014794,2]
[337598716,1725883870326,-4369.79328,0.00014794,2]
[337598717,1725883870336,-500.0,0.00014794,2]
[337598718,1725883870345,-350.66703188,0.00014794,2]
[337598719,1725883870355,-684.78,0.00014794,2]
[337598720,1725883870365,-4369.79328,0.00014794,2]
[337598721,1725883870375,-500.0,0.00014794,2]
[337598722,1725883870384,-684.78,0.00014794,2]
[337598723,1725883870394,-500.0,0.00014794,2]
[337598724,1725883870404,-4369.79328,0.00014794,2]
[337598725,1725883870413,-684.78,0.00014794,2]
[337598726,1725883870423,-500.0,0.00014794,2]
[337598727,1725883870433,-3134.56,0.00014794,2]
[337598728,1725883870443,-684.78,0.00014794,2]
[337598729,1725883870453,-4369.79328,0.00014794,2]
[337598730,1725883870462,-500.0,0.00014794,2]
[337598731,1725883870472,-684.78,0.00014794,2]
[337598732,1725883870482,-3134.56,0.00014794,2]
[337598733,1725883870492,-684.78,0.00014794,2]
[337598734,1725883870501,-3134.56,0.00014794,2]
[337598735,1725883870510,-4369.79328,0.00014794,2]
[337598736,1725883870519,-684.78,0.00014794,2]
[337598737,1725883870529,-187.01674509,0.00014794,2]
[337598738,1725883870539,-500.0,0.00014794,2]
[337598739,1725883870548,-3134.56,0.00014794,2]
[337598740,1725883870558,-4369.79328,0.00014794,2]
[337598741,1725883870567,-684.78,0.00014794,2]
[337598742,1725883870577,-500.0,0.00014794,2]
[337598743,1725883870586,-3134.56,0.00014794,2]
[337598744,1725883870596,-500.0,0.00014794,2]
[337598745,1725883870605,-500.0,0.00014794,2]
[337598746,1725883870615,-4369.79328,0.00014794,2]
[337598747,1725883870624,-3134.56,0.00014794,2]
[337598748,1725883870633,-500.0,0.00014794,2]
[337598749,1725883870643,-684.78,0.00014794,2]
[337598750,1725883870653,-500.0,0.00014794,2]
[337598751,1725883870663,-3134.56,0.00014794,2]
[337598752,1725883870672,-500.0,0.00014794,2]
[337598753,1725883870681,-4369.79328,0.00014794,2]
[337598754,1725883870691,-684.78,0.00014794,2]
[337598755,1725883870700,-500.0,0.00014794,2]
[337598756,1725883870710,-3134.56,0.00014794,2]
[337598757,1725883870720,-500.0,0.00014794,2]
[337598758,1725883870730,-684.78,0.00014794,2]
[337598759,1725883870740,-4369.793277,0.00014794,2]
[337598760,1725883870749,-500.0,0.00014794,2]
[337598761,1725883870758,-684.78,0.00014794,2]
[337598762,1725883870767,-500.0,0.00014794,2]
[337598763,1725883870776,-500.0,0.00014794,2]
[337598764,1725883870785,-500.0,0.00014794,2]
[337598765,1725883870795,-684.78,0.00014794,2]
[337598766,1725883870803,-500.0,0.00014794,2]
[337598767,1725883870812,-3134.56,0.00014794,2]
[337598768,1725883870821,-500.0,0.00014794,2]
[337598769,1725883870831,-192.67453248,0.00014794,2]
[337598770,1725883870840,-803.59,0.00014794,2]
[337598771,1725883870850,-684.78,0.00014794,2]
[337598772,1725883870859,-420.65614658,0.00014794,2]
[337598773,1725883870868,-500.0,0.00014794,2]
[337598774,1725883870877,-803.59,0.00014794,2]
[337598775,1725883870886,-684.78,0.00014794,2]
[337598776,1725883870895,-500.0,0.00014794,2]
[337598777,1725883870904,-3134.56,0.00014794,2]
[337598778,1725883870913,-803.59,0.00014794,2]
[337598779,1725883870922,-684.78,0.00014794,2]
[337598780,1725883870931,-500.0,0.00014794,2]
[337598781,1725883870940,-3134.56,0.00014794,2]
[337598782,1725883870950,-803.59,0.00014794,2]
[337598783,1725883870959,-684.78,0.00014794,2]
[337598784,1725883870968,-500.0,0.00014794,2]
[337598785,1725883870977,-3134.56,0.00014794,2]
[337598786,1725883870986,-803.59,0.00014794,2]
[337598787,1725883870995,-684.78,0.00014794,2]
[337598788,1725883871005,-500.0,0.00014794,2]
[337598789,1725883871015,-3134.56,0.00014794,2]
[337598790,1725883871023,-803.59,0.00014794,2]
[337598791,1725883871032,-500.0,0.00014794,2]
[337598792,1725883871041,-3134.56,0.00014794,2]
[337598793,1725883871051,-803.59,0.00014794,2]
[337598794,1725883871060,-500.0,0.00014794,2]
[337598795,1725883871069,-3134.56,0.00014794,2]
[337598796,1725883871078,-803.59,0.00014794,2]
[337598797,1725883871087,-500.0,0.00014794,2]
[337598798,1725883871097,-803.59,0.00014794,2]
[337598799,1725883871107,-2747.73719948,0.00014794,2]
[337598800,1725883876840,-386.82280052,0.00014794,2]
[337598801,1725883876850,-945.26,0.00014794,2]
[337598802,1725883876859,-500.0,0.00014794,2]
[337598803,1725883876868,-945.26,0.00014794,2]
[337598804,1725883876878,-803.59,0.00014794,2]
[337598805,1725883876887,-3134.56,0.00014794,2]
[337598806,1725883876896,-500.0,0.00014794,2]
[337598807,1725883876905,-803.59,0.00014794,2]
[337598808,1725883876917,-294.35821248,0.00014794,2]
[337598809,1725883876941,-650.90178752,0.00014794,2]
[337598810,1725883876951,-3134.56,0.00014794,2]
[337598811,1725883876960,-500.0,0.00014794,2]
[337598812,1725883876970,-945.26,0.00014794,2]
[337598813,1725883876978,-803.59,0.00014794,2]
[337598814,1725883876987,-333.58821248,0.00014794,2]
[337598815,1725883877063,-2800.97178752,0.00014794,2]
[337598816,1725883877073,-500.0,0.00014794,2]
[337598817,1725883877082,-945.26,0.00014794,2]
[337598818,1725883877092,-371.68037293,0.00014794,2]
[337598819,1725883877209,-431.90962707,0.00014794,2]
[337598820,1725883877219,-3134.56,0.00014794,2]
[337598821,1725883877229,-500.0,0.00014794,2]
[337598822,1725883877239,-945.26,0.00014794,2]
[337598823,1725883877248,-2308.82,0.00014794,2]
[337598824,1725883877258,-803.59,0.00014794,2]
[337598825,1725883877268,-3134.58018788,0.00014794,2]
[337598826,1725883877278,-945.26,0.00014794,2]
[337598827,1725883877291,-2308.82,0.00014794,2]
[337598828,1725883877300,-500.0,0.00014794,2]
[337598829,1725883877310,-803.59,0.00014794,2]
[337598830,1725883877319,-945.26,0.00014794,2]
[337598831,1725883877329,-2308.82,0.00014794,2]
[337598832,1725883877339,-803.59,0.00014794,2]
[337598833,1725883877349,-2308.82,0.00014794,2]
[337598834,1725883877360,-945.26,0.00014794,2]
[337598835,1725883877370,-803.59,0.00014794,2]
[337598836,1725883877379,-2308.82,0.00014794,2]
[337598837,1725883877388,-945.26,0.00014794,2]
[337598838,1725883877397,-803.59,0.00014794,2]
[337598839,1725883877406,-2272.3911449,0.00014794,2]
[337598840,1725883877452,-36.4288551,0.00014794,2]
[337598841,1725883877461,-734.7151449,0.00014794,2]
[337598842,1725883905673,500.0,0.00011164,2]
[337598843,1725883913968,503.27,0.00012063,2]
[337598844,1725883925321,500.0,8.972e-05,2]
[337598845,1725883926885,500.0,0.00011712,2]
[337598846,1725883967381,786.61,0.000279,120]
[337598847,1725883970236,500.0,8.972e-05,2]
[337598848,1725883972013,500.0,0.00010342,2]
[337598849,1725883978079,500.0,0.00011164,2]
[337598850,1725884054167,150.0,4.17e-06,2]
[337598851,1725884059845,504.88,0.00010959,2]
[337598852,1725884144184,-250.0,0.00012538,2]
[337598853,1725884195076,-1035.0,0.00012751,2]
[337598854,1725884261966,750.0,0.00011,2]
[337598855,1725884359943,227.79,0.00012205,2]
[337598876,1725884636030,490.52,0.00010543,2]
[337598877,1725884660200,250.0,0.00012453,2]
[337598878,1725884730010,2850.0,0.000101,2]
[337598886,1725884847251,204.23,0.00012029,2]
[337598887,1725884933491,250.0,0.00012029,2]
[337598888,1725884945343,475.96,0.00012029,2]
[337598889,1725884945419,475.96,0.00012032,2]
[337598890,1725884945501,475.96,0.00012035,2]
[337598891,1725884945611,475.96,0.00012038,2]
[337598892,1725884945895,475.96,0.00012042,2]
[337598893,1725884946071,475.96,0.00012045,2]
[337598894,1725884946272,475.96,0.00012048,2]
[337598895,1725884946575,475.96,0.00012051,2]
[337598896,1725884946835,475.96,0.00012054,2]
[337598897,1725884947013,475.96,0.00012058,2]
[337598898,1725884947250,475.96,0.00012061,2]
[337598899,1725884947419,475.96,0.00012064,2]
[337598900,1725884947650,475.96,0.00012067,2]
[337598901,1725884947882,475.96,0.0001207,2]
[337598904,1725884948355,475.96,0.00012073,2]
[337598905,1725884948599,475.96,0.00012077,2]
[337598906,1725884948790,475.96,0.0001208,2]
[337598907,1725884949076,475.96,0.00012083,2]
[337598908,1725884949314,475.96,0.00012086,2]
[337598909,1725884949567,475.96,0.00012089,2]
[337598910,1725884953821,150.0,0.0001211,2]
[337598911,1725884971597,-300.0,0.00012521,2]
[337598912,1725884971626,-504.0,0.00012522,2]
[337598913,1725884971655,-6254.2298429,0.00012522,2]
[337598914,1725884971712,-7058.2298429,0.00012522,2]
[337598915,1725884971767,-2088.0642012,0.00012522,2]
[337598916,1725884980665,154.66,0.00012486,2]
[337598917,1725884996574,-4462.83725654,0.00012522,2]
[337598940,1725885033709,-587.0,0.00012522,2]
[337598941,1725885033721,-3408.55660197,0.00012522,2]
[337598942,1725885033733,-41.08225449,0.00012522,2]
[337598943,1725885033742,-155.78,0.00012532,2]
[337598944,1725885033752,-227.79,0.00012609,2]
[337598945,1725885033762,-993.6253438,0.00012669,2]
[337598946,1725885033866,-746.56164777,0.00012669,2]
[337598947,1725885033879,-9.00300843,0.00012669,2]
[337598948,1725885033889,-539.61336678,0.00012751,2]
[337598949,1725885033900,-984.09450233,0.00012751,2]
[337598950,1725885033913,-535.511,0.00012751,2]
[337598951,1725885033924,-2599.99999999,0.00012751,2]
[337598952,1725885033936,-5340.7811309,0.00012751,2]
[337598953,1725885033949,-490.52,0.00012807,2]
[337598954,1725885033960,-150.0,0.00012879,2]
[337598955,1725885033970,-72458.3263044,0.0001288,2]
[337598957,1725885033980,-7415.0793,0.000129,2]
[337598959,1725885033990,-14147.5748,0.000129,2]
[337598961,1725885033999,-499.99,0.000129,2]
[337598962,1725885034009,-7422.1684,0.000129,2]
[337598963,1725885034018,-352.73051696,0.000129,2]
[337598964,1725885034029,-1913.22664864,0.000129,2]
[337598965,1725885034039,-889.57757689,0.000129,2]
[337598966,1725885034049,-1913.22664864,0.00012907,2]
[337598967,1725885034059,-1913.22664864,0.00012913,2]
[337598968,1725885034069,-500.0,0.00012973,2]
[337598969,1725885034079,-500.0,0.00012973,2]
[337598970,1725885034089,-200.0,0.00012973,2]
[337598971,1725885034100,-242.24228455,0.00012999,2]
[337598972,1725885034109,-334.98095548,0.00012999,2]
[337598973,1725885034119,-500.0,0.00012999,2]
[337598974,1725885034129,-411.47229295,0.00012999,2]
[337598975,1725885034139,-10672.87,0.00012999,2]
[337598976,1725885034148,-800.0,0.00013,2]
[337598977,1725885034157,-104285.68064657,0.00013,2]
[337598978,1725885034169,-312.75876885,0.00013,2]
[337598979,1725885034249,-600.0,0.00013,2]
[337598980,1725885034261,-1096.73776496,0.00013,2]
[337598981,1725885034274,-1238.04,0.00013,2]
[337598982,1725885034299,-127803.35023787,0.00013,2]
[337598983,1725885034312,-5500.0,0.00013,2]
[337598984,1725885034328,-40339.16062519,0.00013,2]
[337598985,1725885034339,-544513.95100729,0.00013,2]
[337598989,1725885038278,-10000.0,0.00012751,2]
[337598990,1725885038288,-889.57757689,0.00012907,2]
[337598991,1725885038297,-8657.68431,0.00013,2]
[337598992,1725885038309,-12504.31307594,0.00013,2]
[337598993,1725885038321,-638.76806,0.00013,2]
[337598994,1725885038332,-2022.30000001,0.00013,2]
[337598996,1725885038361,-0.13307159,0.00013,2]
[337598999,1725885038384,-5465.0596,0.00013,2]
[337599000,1725885038395,-213231.48754307,0.00013,2]
[337599011,1725885038543,-5429.47785504,0.00013,2]
[337599013,1725885038554,-620847.03832663,0.00013,2]
[337599015,1725885038563,-195750.91907803,0.00013,2]
[337599017,1725885038574,-351.02300115,0.00013,2]
[337599018,1725885038584,-30098.5069003,0.00013,2]
[337599020,1725885038597,-1583.68786984,0.00013,2]
[337599026,1725885038654,-33740.1538901,0.00013,2]
[337599028,1725885038666,-17230.93025997,0.00013,2]
[337599030,1725885038683,-178956.42032758,0.00013,2]
[337599033,1725885038708,-2440.67190885,0.00013,2]